bitfinex/quotes_ETHUSD_20250107
["timestamp","ask_amount","ask_price","bid_price","bid_amount"]
[1736273773929,0.0075,3444.8,3444.0,0.1]
[1736273774116,0.0075,3444.8,3444.0,3.00354]
[1736273774462,0.0075,3444.6,3444.0,3.00354]
[1736273774641,0.0075,3444.4,3444.0,3.00354]
[1736273774803,0.0075,3444.4,3444.1,2.90351]
[1736273775119,0.0075,3444.2,3444.1,2.90351]
[1736273776010,0.0075,3444.8,3444.1,2.90351]
[1736273776206,0.0075,3444.6,3444.1,2.90351]
[1736273776401,0.0075,3444.6,3444.0,0.1]
[1736273776644,0.05279046,3444.5,3444.0,3.00359]
[1736273776800,1.5775,3444.9,3444.1,0.55]
[1736273777140,0.0508465,3444.8,3444.6,2.90305]
[1736273777326,0.0075,3444.7,3444.6,2.90305]
[1736273777528,0.0075,3444.7,3444.0,0.564929]
[1736273777529,0.0075,3444.7,3444.0,2.090029]
[1736273777719,0.05829536,3444.7,3444.1,2.90351]
[1736273777921,0.0075,3445.2,3444.4,2.90321]
[1736273778221,0.0075,3445.0,3444.3,0.55]
[1736273778445,0.0075,3445.0,3444.0,1.6251]
[1736273778734,0.0075,3444.8,3444.0,1.6251]
[1736273779360,0.0075,3444.6,3444.1,2.9035]
[1736273780035,0.0075,3444.4,3444.1,2.9035]
[1736273780550,2.903,3444.8,3444.0,0.1]
[1736273780842,1.66536339,3444.7,3444.0,0.1]
[1736273781040,0.0075,3444.5,3444.0,0.1]
[1736273781441,0.0075,3444.3,3444.0,0.1]
[1736273781816,0.0075,3444.1,3444.0,0.1]
[1736273782236,0.05826339,3444.1,3444.0,0.1]
[1736273782944,1.60516339,3444.1,3444.0,0.1]
[1736273783448,4.50867339,3444.1,3444.0,0.1]
[1736273783743,10.80127651,3444.1,3444.0,0.1]
[1736273785133,6.20395312,3443.7,3443.6,0.1722283]
[1736273785511,6.25405779,3443.7,3443.6,0.1722283]
[1736273786364,0.0075,3443.4,3441.9,1.6235]
[1736273786569,0.0075,3442.7,3441.9,1.6235]
[1736273786859,0.0075,3442.5,3441.9,1.6235]
[1736273787249,0.04807655,3442.4,3441.9,1.6235]
[1736273787429,1.5538,3442.8,3441.8,2.90544]
[1736273787636,0.0075,3442.6,3441.8,2.90544]
[1736273788018,0.0075,3442.4,3441.8,2.90544]
[1736273788209,0.0075,3442.4,3442.0,2.90525]
[1736273788642,0.0075,3442.2,3442.1,2.90519]
[1736273789073,0.0075,3442.2,3442.1,3.46269]
[1736273789211,1.5538,3444.3,3442.6,0.5575]
[1736273789414,2.94942756,3444.2,3442.8,1.6235]
[1736273789732,0.0075,3443.9,3442.8,4.52809]
[1736273790120,1.5909,3443.6,3442.8,4.52809]
[1736273790317,1.5909,3443.6,3442.5,1.5951]
[1736273790535,0.04620586,3443.5,3442.7,2.90469]
[1736273790753,0.0075,3443.4,3442.5,4.949954]
[1736273790911,0.0075,3443.4,3442.5,2.045114]
[1736273791112,0.0075,3443.4,3442.7,0.0075]
[1736273791376,0.04629554,3443.3,3443.1,2.90435]
[1736273791689,1.5041,3443.9,3443.1,2.90435]
[1736273791690,1.5041,3443.9,3443.2,1.6593]
[1736273791979,0.0075,3443.8,3443.2,4.56355]
[1736273792129,0.05379554,3443.8,3443.2,4.56355]
[1736273792524,0.05379554,3443.8,3443.2,1.6593]
[1736273792732,0.05379554,3443.8,3442.9,0.0075]
[1736273792994,0.05379554,3443.8,3443.0,0.55]
[1736273793280,0.05379554,3443.8,3442.9,2.90451]
[1736273794257,0.05379554,3443.8,3442.8,0.55]
[1736273794461,0.05379554,3443.8,3443.1,2.90428]
[1736273795382,0.05379554,3443.8,3443.2,0.02904132]
[1736273795724,0.05379554,3443.8,3443.5,2.90397]
[1736273796026,0.05379554,3443.8,3443.1,3.45435]
[1736273796027,0.05393004,3443.7,3443.0,2.90444]
[1736273796252,0.05393004,3443.7,3443.2,2.90424]
[1736273796452,0.05393004,3443.7,3442.9,0.5790429]
[1736273796453,0.05393004,3443.7,3443.3,2.90411]
[1736273796765,0.05393004,3443.7,3443.4,4.45507]
[1736273797129,0.05393004,3443.7,3443.6,2.91143]
[1736273797369,0.05393004,3443.7,3443.6,3.46143]
[1736273797662,1.626,3445.6,3443.6,3.46143]
[1736273797663,1.5132,3445.1,3444.4,2.90324]
[1736273797876,1.5132,3445.1,3443.6,2.90393]
[1736273797877,0.05341441,3445.0,3443.6,2.90393]
[1736273798168,0.0075,3444.7,3443.7,1.841393]
[1736273798341,2.91052,3444.7,3443.7,1.551]
[1736273798543,0.0075,3444.3,3443.4,1.551]
[1736273798752,0.0075,3444.3,3443.4,4.45503]
[1736273798951,0.0075,3444.0,3443.1,1.602]
[1736273799159,0.0075,3443.8,3443.1,1.602]
[1736273799364,0.0075,3443.8,3443.0,2.90443]
[1736273799691,0.0075,3443.8,3443.1,0.55]
[1736273799692,0.0075,3443.6,3443.1,0.55]
[1736273799870,0.0075,3443.6,3443.0,2.90443]
[1736273799871,0.0075,3443.6,3442.8,4.50659]
[1736273800194,0.0075,3443.4,3442.9,0.55]
[1736273800421,0.0075,3443.4,3442.8,4.50659]
[1736273800422,0.0075,3443.2,3441.9,4.50733]
[1736273800540,0.0075,3443.0,3442.1,2.9052]
[1736273800745,0.0075,3443.0,3441.9,2.38199331]
[1736273800746,0.0075,3443.0,3442.2,2.90506]
[1736273800948,0.04594004,3442.9,3442.0,0.02904962]
[1736273801144,1.5618,3443.3,3442.0,0.029047]
[1736273801442,1.5618,3443.3,3442.7,0.55]
[1736273801683,0.0075,3443.7,3442.9,2.90451]
[1736273801883,0.0075,3443.5,3442.9,2.90451]
[1736273802198,0.0075,3443.5,3443.1,2.90433]
[1736273802359,0.0075,3443.3,3442.9,0.02904425]
[1736273802557,0.0075,3443.3,3443.2,2.90427]
[1736273802763,0.0075,3443.3,3442.9,0.02904425]
[1736273802764,0.0075,3443.3,3443.1,0.55]
[1736273803012,2.91111,3444.0,3443.0,2.90436]
[1736273803227,2.90399,3443.6,3442.6,4.56975]
[1736273803530,0.0075,3443.3,3442.4,2.90491]
[1736273803807,0.0075,3443.3,3441.7,3.29260312]
[1736273803808,0.0075,3443.1,3442.1,2.90512]
[1736273804008,0.0075,3443.3,3441.8,0.02904962]
[1736273804171,0.0075,3442.9,3441.8,0.18237458]
[1736273804377,0.0075,3442.9,3442.7,2.90467]
[1736273805080,1.6209,3443.4,3442.7,2.90467]
[1736273805398,0.05127812,3443.3,3442.7,2.90464]
[1736273805711,0.05127812,3443.3,3442.9,2.90452]
[1736273805914,0.05127812,3443.3,3443.0,0.57904452]
[1736273806077,0.05127812,3443.3,3443.2,3.45427]
[1736273806279,0.0075,3443.6,3443.3,0.55]
[1736273806624,0.0075,3443.6,3443.4,2.90405]
[1736273806771,0.05140639,3443.5,3443.4,3.45405]
[1736273806971,0.05140639,3443.5,3443.4,4.254664]
[1736273807175,0.0075,3443.5,3443.4,4.262164]
[1736273807840,0.0075,3443.5,3443.4,3.46155]
[1736273808134,0.0075,3443.4,3443.1,1.6478]
[1736273808280,0.0075,3443.4,3443.2,2.90427]
[1736273808604,1.5003,3443.8,3443.2,0.55]
[1736273808803,0.0075,3443.7,3443.2,0.55]
[1736273808977,0.05175264,3443.7,3443.2,0.55]
[1736273809328,0.05175264,3443.7,3442.8,2.90454]
[1736273809329,0.05175264,3443.7,3443.0,0.55]
[1736273809534,0.05175264,3443.7,3443.2,0.55]
[1736273810009,0.05175264,3443.7,3442.8,0.5575]
[1736273810182,0.05175264,3443.7,3442.9,0.57904164]
[1736273810380,0.05175264,3443.7,3443.1,0.55]
[1736273810622,0.05175264,3443.7,3443.2,2.90425]
[1736273811017,0.05175264,3443.7,3442.8,0.5575]
[1736273811239,0.0075,3443.7,3443.1,0.55]
[1736273811523,0.0075,3443.5,3443.1,0.55]
[1736273811958,0.0075,3443.3,3443.1,0.55]
[1736273812329,0.0075,3443.3,3442.7,1.5517]
[1736273812658,0.0075,3443.1,3442.9,2.90449]
[1736273813633,1.5003,3443.8,3442.9,2.90449]
[1736273813970,0.04429114,3443.7,3442.9,2.90449]
[1736273815254,0.04429114,3443.7,3442.1,3.29260312]
[1736273815427,1.6027,3443.6,3442.8,2.90454]
[1736273815621,1.6027,3443.6,3442.9,2.90451]
[1736273815960,0.04429114,3443.5,3442.9,2.90451]
[1736273816156,0.04429114,3443.5,3442.2,4.55724]
[1736273816362,0.04429114,3443.5,3442.7,2.90467]
[1736273816937,0.04429114,3443.5,3442.4,0.55]
[1736273817138,0.04429114,3443.5,3442.9,2.90451]
[1736273818762,0.04429114,3443.5,3442.5,2.90486]
[1736273819063,0.04429114,3443.5,3442.6,0.55]
[1736273819235,0.04429114,3443.5,3442.8,2.90454]
[1736273820164,1.5324,3443.4,3442.8,2.90454]
[1736273820369,1.57654365,3443.4,3442.8,2.90454]
[1736273820885,1.57654365,3443.4,3442.6,0.55]
[1736273820886,0.04414365,3443.4,3443.1,0.55]
[1736273821062,0.04414365,3443.4,3443.3,3.45419]
[1736273821276,1.20875647,3443.7,3443.6,2.90393]
[1736273821653,1.20875647,3444.0,3443.7,0.55]
[1736273821828,1.20875647,3444.0,3443.4,2.9041]
[1736273822162,1.20875647,3444.0,3443.7,2.90385]
[1736273822363,1.20875647,3444.0,3443.5,2.904]
[1736273822573,1.20875647,3444.0,3443.6,2.90385]
[1736273822730,1.20875647,3444.0,3443.3,3.45415]
[1736273822731,1.20875647,3444.0,3443.7,2.90384]
[1736273822932,1.20875647,3444.0,3443.4,1.68793874]
[1736273823135,1.20875647,3444.0,3443.9,2.90368]
[1736273823368,1.6119,3444.4,3444.2,2.9034]
[1736273824235,1.6119,3444.4,3443.7,0.5575]
[1736273824465,1.6119,3444.4,3443.7,0.55]
[1736273824807,1.6119,3444.4,3443.9,0.55]
[1736273825082,1.6119,3444.4,3443.9,3.4536]
[1736273825669,1.6119,3444.4,3444.0,2.90359]
[1736273826675,1.6119,3444.4,3443.4,4.55547]
[1736273826843,4.4299,3444.0,3443.1,2.90431]
[1736273827461,2.76557333,3444.0,3443.0,1.20546131]
[1736273827967,1.6117,3443.6,3443.0,1.20546131]
[1736273828179,1.6117,3443.6,3442.7,5.31961478]
[1736273828180,2.82045647,3443.6,3442.7,2.90462]
[1736273828745,3.41181135,3443.6,3442.2,1.45051081]
[1736273828948,2.90422,3443.3,3442.2,1.45051081]
[1736273829370,2.90422,3443.3,3442.3,2.90501]
[1736273829749,2.90422,3443.3,3442.4,0.55]
[1736273829953,4.11297647,3443.3,3442.4,0.55]
[1736273830149,4.11297647,3443.3,3442.5,0.55]
[1736273830354,1.5025,3443.2,3442.5,0.55]
[1736273830856,2.5081332,3443.2,3442.5,0.55]
[1736273831372,2.5081332,3443.2,3442.2,0.55]
[1736273831588,2.5081332,3443.2,3442.5,2.90485]
[1736273831797,2.5081332,3443.2,3442.7,0.55]
[1736273831976,1.0056332,3443.2,3442.7,0.02904654]
[1736273832310,1.20875647,3443.3,3443.2,3.45427]
[1736273833056,1.20875647,3443.3,3443.0,2.90442]
[1736273833278,0.03942184,3443.2,3442.8,2.90458]
[1736273833591,3.35274951,3443.5,3442.7,1.20546131]
[1736273833592,4.44082,3443.5,3442.7,1.20546131]
[1736273833762,0.03942184,3443.1,3442.7,1.20546131]
[1736273834085,4.44082,3443.5,3442.7,1.20546131]
[1736273834390,1.5368,3443.5,3442.7,1.20546131]
[1736273834592,0.03942184,3443.4,3442.7,1.20546131]
[1736273834992,1.24817831,3443.4,3442.6,2.90476]
[1736273836658,1.00627156,3443.3,3442.6,2.90476]
[1736273837357,0.03942184,3443.2,3442.9,0.55]
[1736273837592,1.00627156,3443.3,3442.9,0.55]
[1736273837900,0.03942184,3443.1,3442.5,0.55]
[1736273838200,0.03942184,3443.0,3442.8,1.5406]
[1736273838497,2.21502803,3443.3,3443.2,2.90427]
[1736273838796,2.21502803,3443.3,3443.2,3.45427]
[1736273839220,2.79115647,3443.9,3443.3,0.55]
[1736273840025,3.72388663,3443.8,3443.3,0.55]
[1736273840618,3.72388663,3443.8,3443.5,0.55]
[1736273840913,3.72388663,3443.8,3443.7,2.90385]
[1736273841099,3.72388663,3443.8,3443.7,3.744235]
[1736273841292,2.51513016,3443.8,3443.7,3.744235]
[1736273841704,2.51513016,3443.8,3443.7,0.55]
[1736273841879,2.51513016,3443.8,3443.3,1.5498]
[1736273842056,2.51513016,3443.8,3443.7,3.45385]
[1736273842714,1.20875647,3444.2,3443.8,0.55]
[1736273842926,1.20875647,3444.2,3443.8,3.45373]
[1736273843214,1.20875647,3444.2,3443.4,2.90405]
[1736273843215,1.6384,3444.1,3443.4,2.90408]
[1736273844117,1.6384,3444.1,3443.5,0.55]
[1736273844322,1.20875647,3444.3,3443.5,0.23901668]
[1736273844597,1.20875647,3444.3,3444.0,0.55]
[1736273844973,1.20875647,3444.3,3444.2,0.55]
[1736273845174,1.20875647,3444.3,3444.2,3.45343]
[1736273845516,1.20875647,3444.3,3444.2,3.46093]
[1736273845799,3.62249218,3445.1,3444.1,1.6544]
[1736273845800,1.20875647,3444.7,3444.4,0.55]
[1736273846169,1.20875647,3444.7,3444.2,0.5575]
[1736273846366,1.20875647,3444.7,3444.5,0.55]
[1736273846813,1.20875647,3444.7,3444.1,1.6544]
[1736273847098,1.20875647,3444.7,3444.0,2.90354]
[1736273847302,1.20875647,3445.1,3444.7,0.55]
[1736273847669,1.20875647,3445.1,3444.4,0.5575]
[1736273847863,0.04096348,3445.0,3444.9,2.90282]
[1736273848179,0.04096348,3445.0,3444.9,3.45282]
[1736273848587,0.04096348,3445.0,3444.9,3.46032]
[1736273848786,2.51460791,3445.2,3444.9,0.0075]
[1736273848985,0.04096348,3445.0,3444.9,0.0075]
[1736273849185,2.51460791,3445.2,3444.9,0.0075]
[1736273849186,2.51460791,3445.2,3445.0,0.55]
[1736273849600,2.51460791,3445.2,3445.1,7.19720272]
[1736273849803,1.20875647,3445.7,3445.2,0.5575]
[1736273850003,1.20875647,3445.7,3445.3,2.93152165]
[1736273850204,1.20875647,3445.7,3445.4,0.55]
[1736273850568,1.20875647,3445.7,3444.5,2.76213272]
[1736273850786,1.20875647,3445.7,3444.8,2.90291]
[1736273850992,4.11092647,3445.7,3444.6,1.5249]
[1736273851192,1.5333,3445.6,3444.3,1.5249]
[1736273851400,4.43555,3445.6,3444.5,2.93213622]
[1736273851673,4.43556,3445.6,3444.7,2.90295]
[1736273851880,4.43556,3445.6,3444.6,0.55]
[1736273852277,2.90236,3445.5,3444.6,0.55]
[1736273853012,2.90247,3445.4,3444.3,4.42821]
[1736273853176,2.9025,3445.3,3444.4,0.5575]
[1736273853712,0.8074,3445.1,3444.1,2.90347]
[1736273853909,2.90278,3445.0,3444.0,0.8323]
[1736273854697,0.8074,3445.1,3443.9,2.90364]
[1736273855130,2.90275,3445.0,3444.0,0.55]
[1736273855334,2.90275,3445.0,3443.9,2.90364]
[1736273855639,0.8074,3445.1,3444.1,2.90349]
[1736273855793,3.71008,3445.1,3444.2,0.55]
[1736273856128,1.20875647,3445.2,3444.6,3.45301]
[1736273856330,1.20875647,3445.3,3444.3,0.7991]
[1736273856494,0.756,3444.8,3443.8,0.8307]
[1736273856826,2.90301,3444.7,3443.9,0.55]
[1736273857026,0.756,3444.8,3443.6,2.90388]
[1736273857330,3.51813272,3444.8,3443.6,0.55]
[1736273857628,3.51813272,3444.8,3443.4,2.9041]
[1736273857629,2.90326,3444.4,3443.4,2.9041]
[1736273857832,2.90337,3444.3,3443.5,0.55]
[1736273858132,2.90333,3444.4,3443.4,0.55]
[1736273858496,2.90333,3444.4,3443.5,0.55]
[1736273858792,2.9033,3444.4,3443.5,0.55]
[1736273858999,2.9033,3444.4,3443.4,0.55]
[1736273859734,2.9033,3444.4,3443.5,0.55]
[1736273859934,4.89991647,3444.6,3443.6,0.55]
[1736273860117,1.99675647,3444.6,3443.6,0.55]
[1736273860319,0.788,3444.4,3443.1,0.8198]
[1736273860629,2.90359,3444.1,3443.1,3.72412]
[1736273860831,2.90359,3444.1,3443.2,0.55]
[1736273861735,3.788,3444.4,3443.2,0.55]
[1736273862035,2.90403,3443.5,3442.6,0.7891]
[1736273862336,0.8246,3443.6,3442.6,0.7891]
[1736273862636,0.8246,3443.6,3443.0,2.90443]
[1736273862928,0.04019845,3443.5,3443.1,0.55]
[1736273863515,0.04019845,3443.5,3443.2,0.55]
[1736273863817,0.794,3443.9,3443.2,0.55]
[1736273863991,0.04019845,3443.4,3443.2,0.55]
[1736273864339,0.04019845,3443.3,3443.1,0.345443]
[1736273864547,0.794,3443.9,3442.7,2.90468]
[1736273864843,2.90388,3443.7,3442.7,2.90468]
[1736273865149,2.90388,3443.7,3442.8,0.55]
[1736273865316,0.04019845,3443.6,3442.8,3.45458]
[1736273865636,0.794,3443.9,3443.0,0.55]
[1736273865637,3.69768,3443.9,3443.0,0.55]
[1736273865836,0.04019845,3443.5,3443.0,0.55]
[1736273866011,3.69768,3443.9,3443.0,0.55]
[1736273866209,0.04019845,3443.4,3443.0,0.55]
[1736273866525,0.04019845,3443.3,3443.0,0.55]
[1736273866706,3.69768,3443.9,3443.0,0.55]
[1736273866917,0.04019845,3443.8,3443.0,0.55]
[1736273867225,2.94396845,3443.8,3443.0,0.55]
[1736273867636,0.04019845,3443.8,3443.1,0.55]
[1736273867839,0.04019845,3443.8,3443.4,2.9041]
[1736273868052,0.04019845,3443.8,3443.5,0.02903731]
[1736273868342,1.20875647,3444.0,3443.5,0.02903731]
[1736273868922,0.04019845,3443.9,3443.5,0.02903731]
[1736273869122,0.04019845,3443.9,3443.4,0.55]
[1736273869329,0.04019845,3443.9,3443.5,0.55]
[1736273869646,0.7728,3444.3,3443.5,0.55]
[1736273869849,0.04019845,3443.8,3443.2,0.5575]
[1736273870030,0.7728,3444.3,3443.6,0.55]
[1736273870342,0.7728,3444.3,3443.4,2.90409]
[1736273870527,0.03972295,3444.2,3443.6,2.90391]
[1736273870749,0.03972295,3444.2,3443.8,0.55]
[1736273870921,0.58364797,3444.5,3443.8,1.3743]
[1736273871126,0.03972295,3444.4,3443.9,2.90367]
[1736273871338,0.7728,3444.6,3443.8,1.3743]
[1736273871540,0.03972295,3444.5,3443.8,1.3743]
[1736273873458,0.03972295,3444.5,3443.8,0.55]
[1736273874024,0.0075,3444.4,3443.8,0.55]
[1736273874463,0.0075,3444.4,3443.9,0.55]
[1736273874670,0.0075,3444.2,3443.9,0.55]
[1736273874964,0.0075,3444.2,3443.7,0.55]
[1736273875265,0.03949166,3444.1,3443.8,0.02903523]
[1736273875765,0.0075,3444.5,3443.8,0.02903523]
[1736273875963,0.0075,3444.3,3443.8,0.02903523]
[1736273876165,0.0075,3444.3,3443.7,0.427532]
[1736273876372,0.0075,3444.1,3443.7,0.427532]
[1736273876664,0.0075,3444.1,3443.9,0.55]
[1736273876867,0.7728,3444.6,3443.7,0.427532]
[1736273876868,0.0075,3444.5,3443.7,0.427532]
[1736273877167,0.0075,3444.5,3443.8,0.55]
[1736273877168,0.0075,3444.3,3443.8,0.55]
[1736273877355,0.0075,3444.3,3443.7,0.5575]
[1736273877529,0.0075,3444.1,3443.7,0.5575]
[1736273877926,0.0075,3443.9,3443.8,0.55]
[1736273878469,0.0075,3444.5,3443.9,0.55]
[1736273878866,0.0075,3444.3,3443.9,0.55]
[1736273879511,0.0075,3444.1,3443.9,0.55]
[1736273880089,0.04699166,3444.0,3443.9,0.55]
[1736273880608,0.04699166,3444.0,3443.9,3.799806]
[1736273881014,0.0075,3444.0,3443.9,3.799806]
[1736273881372,0.0075,3444.0,3443.9,4.584506]
[1736273881692,0.0075,3444.0,3443.9,4.577006]
[1736273882208,0.0075,3444.0,3443.9,4.584506]
[1736273885832,0.0075,3444.0,3443.9,10.37566928]
[1736273886034,1.20875647,3445.0,3444.4,0.0075]
[1736273886233,1.20875647,3445.0,3444.0,2.9036]
[1736273886234,0.0075,3444.9,3443.9,0.346126]
[1736273886437,0.0472744,3444.9,3443.9,1.147426]
[1736273886624,0.0472744,3444.9,3444.3,2.90333]
[1736273887059,0.0472744,3444.9,3444.0,0.0075]
[1736273887265,2.76213272,3444.6,3443.6,0.8254]
[1736273887424,5.66522272,3444.6,3443.7,2.90384]
[1736273887761,0.0472744,3444.5,3443.8,3.46126]
[1736273889277,0.0472744,3444.5,3442.9,1.20546131]
[1736273889278,0.0075,3443.9,3442.9,1.20546131]
[1736273889473,0.0075,3443.9,3442.9,4.76491305]
[1736273889679,0.0075,3443.9,3442.9,4.73587153]
[1736273889866,0.0075,3443.9,3443.0,2.90443]
[1736273890377,0.0075,3443.7,3443.1,0.55]
[1736273890535,3.67012,3444.0,3443.2,0.0290416]
[1736273890740,0.0075,3443.8,3443.2,0.55]
[1736273891241,0.0075,3443.6,3443.2,0.57903916]
[1736273891796,0.0075,3443.9,3443.2,0.55]
[1736273892000,0.0075,3443.4,3443.2,0.55]
[1736273892346,0.0468631,3443.3,3443.2,0.55]
[1736273892551,0.0075,3443.3,3443.2,0.55]
[1736273893158,0.7665,3444.0,3443.2,3.48330915]
[1736273893361,0.0468631,3443.9,3443.4,0.0075]
[1736273893579,0.0468631,3443.9,3443.7,0.55]
[1736273893777,0.0468631,3443.9,3443.8,3.45376]
[1736273893953,0.0468631,3443.9,3443.8,3.48279442]
[1736273894148,0.0468631,3443.9,3443.8,3.91193386]
[1736273894353,0.0468631,3443.9,3443.8,0.55]
[1736273894754,0.0468631,3443.9,3443.2,2.9042]
[1736273894987,0.0468631,3443.9,3443.3,3.0]
[1736273895193,0.0468631,3443.9,3443.4,0.55]
[1736273895390,0.0468631,3443.9,3443.1,0.5575]
[1736273895553,0.0468631,3443.9,3443.0,0.8086]
[1736273895554,2.9505531,3443.9,3443.0,0.8086]
[1736273895754,2.9505531,3443.9,3442.9,0.62596022]
[1736273895755,0.0468631,3443.9,3442.9,5.93352886]
[1736273896065,2.9505731,3443.9,3442.9,2.90449]
[1736273896857,2.9505731,3443.9,3443.0,0.55]
[1736273897476,0.0075,3443.7,3443.0,0.55]
[1736273897751,5.66592272,3443.8,3443.0,0.55]
[1736273897752,0.0075,3443.5,3443.0,0.55]
[1736273897979,0.0075,3443.5,3442.7,0.7576]
[1736273897980,0.0075,3443.5,3442.8,0.55]
[1736273898178,0.0075,3443.5,3442.3,2.90503]
[1736273898179,0.0075,3443.3,3442.3,2.01466131]
[1736273898387,2.91186,3443.1,3442.3,1.20546131]
[1736273898729,0.0075,3443.1,3442.6,0.55]
[1736273898882,0.03887466,3443.0,3442.6,0.55]
[1736273899078,0.0075,3442.9,3442.6,0.55]
[1736273899464,0.0075,3442.7,3442.6,0.55]
[1736273899882,0.0075,3443.1,3442.4,0.55]
[1736273900214,0.0075,3443.1,3442.4,3.55]
[1736273900215,0.0075,3442.9,3442.4,3.55]
[1736273900766,0.0075,3442.9,3442.5,0.55]
[1736273900767,0.0075,3442.7,3442.5,0.55]
[1736273901291,0.0075,3442.5,3442.2,0.5575]
[1736273901486,0.0075,3442.5,3442.4,0.55]
[1736273901800,0.0075,3443.1,3442.4,6.45495]
[1736273902309,0.0075,3442.9,3442.4,6.45495]
[1736273902800,0.0075,3442.7,3442.4,6.45495]
[1736273903300,0.0075,3442.7,3442.6,0.55]
[1736273903464,0.0075,3443.1,3442.6,0.55]
[1736273903667,0.0075,3443.1,3442.5,2.90484]
[1736273903668,0.0075,3443.1,3442.5,0.55]
[1736273904793,0.0075,3443.1,3442.5,0.57904668]
[1736273904993,0.0075,3443.1,3442.7,0.55]
[1736273905516,0.0075,3443.1,3442.8,0.55]
[1736273907720,0.0075,3443.1,3442.5,0.55]
[1736273908110,0.0075,3442.9,3442.4,0.55]
[1736273908288,2.76963272,3442.9,3441.9,4.92001131]
[1736273908622,0.0075,3442.7,3442.0,0.67341574]
[1736273909010,0.0075,3442.7,3442.1,0.55]
[1736273909210,0.0075,3442.7,3442.3,0.55]
[1736273909211,0.0075,3442.5,3442.3,0.55]
[1736273909820,0.0075,3442.3,3442.1,0.55]
[1736273910411,0.04555175,3442.2,3442.1,0.55]
[1736273910791,0.0075,3442.2,3442.1,3.4552]
[1736273911214,0.0075,3442.2,3442.1,7.21847826]
[1736273911414,0.0075,3442.2,3442.1,7.18943]
[1736273915892,0.0075,3442.2,3442.1,9.95156272]
[1736273917430,0.7708,3443.2,3442.1,10.71436272]
[1736273917592,0.7688,3443.6,3443.1,0.55]
[1736273917791,0.03848254,3443.5,3443.1,0.57904038]
[1736273918095,0.0075,3443.4,3443.1,0.55]
[1736273918496,0.0075,3443.2,3443.1,3.48339038]
[1736273918994,0.0075,3443.5,3443.1,3.45435]
[1736273919240,0.0075,3443.3,3443.1,3.48339037]
[1736273919391,0.0075,3443.3,3443.0,2.76213272]
[1736273919392,0.0075,3443.3,3443.0,0.55]
[1736273919602,0.0075,3443.3,3443.0,3.45443]
[1736273919838,0.0075,3443.1,3443.0,3.45443]
[1736273920518,0.0075,3443.5,3443.0,3.45443]
[1736273920825,0.0075,3443.5,3442.7,2.76213272]
[1736273920826,0.0075,3443.3,3442.7,2.76213272]
[1736273921034,0.0075,3443.3,3443.0,2.90442]
[1736273921347,0.0075,3443.5,3443.1,0.57904039]
[1736273921527,0.04614969,3443.2,3443.1,3.49087039]
[1736273921838,0.0075,3443.2,3443.1,3.46183]
[1736273926231,0.0075,3443.2,3443.1,3.4908688]
[1736273926544,0.0075,3443.2,3443.1,8.25999538]
[1736273926839,0.0075,3443.2,3443.1,8.23095658]
[1736273931219,1.20875647,3444.3,3443.1,8.23095658]
[1736273931220,1.20875647,3444.3,3443.5,0.55]
[1736273931462,1.97075647,3444.4,3444.1,3.45351]
[1736273931755,1.97075647,3444.4,3444.0,0.55]
[1736273931756,0.0075,3444.1,3444.0,0.55]
[1736273932251,0.0075,3444.1,3443.8,2.9037]
[1736273932252,0.0075,3444.1,3443.9,0.5575]
[1736273932440,0.0075,3444.0,3443.4,3.7706]
[1736273932646,0.0075,3444.0,3443.5,0.97273388]
[1736273932821,0.0075,3443.8,3443.6,0.55]
[1736273933516,0.04427416,3443.7,3443.6,3.4539]
[1736273933914,0.0075,3443.7,3443.6,3.4539]
[1736273934929,0.0075,3443.6,3443.5,0.5575]
[1736273935562,0.0075,3443.6,3443.5,3.46152]
[1736273935857,0.0075,3443.6,3443.0,4.10982131]
[1736273936026,0.0075,3443.6,3443.1,2.90435]
[1736273936926,0.0075,3443.6,3443.2,0.55]
[1736273937327,0.0075,3443.4,3443.2,0.55]
[1736273937869,0.04423556,3443.3,3443.2,0.55]
[1736273942945,0.04423556,3443.3,3443.2,3.46177]
[1736273943153,0.04423556,3443.3,3443.2,7.70247696]
[1736273943347,0.0075,3443.3,3443.2,10.67343772]
[1736273943664,0.0075,3443.3,3443.2,45.67343772]
[1736273944186,1.20875647,3443.9,3443.8,2.91126]
[1736273944485,1.20875647,3443.9,3443.8,10.62801172]
[1736273944785,0.0075,3443.9,3443.8,10.62801172]
[1736273945581,1.20875647,3444.4,3444.3,7.23974]
[1736273945880,1.25172676,3444.4,3444.3,10.00187272]
[1736273946586,0.04297029,3444.4,3444.3,10.00187272]
[1736273946750,0.0075,3444.4,3444.3,11.29241099]
[1736273946946,0.7901,3445.4,3444.3,11.29241099]
[1736273947188,1.20875647,3445.5,3445.4,3.45242]
[1736273947514,0.7758,3445.7,3445.5,0.55]
[1736273948147,0.7758,3445.7,3445.3,2.90245]
[1736273948148,0.0075,3445.6,3445.3,2.90245]
[1736273948382,0.0075,3445.6,3445.5,3.45983]
[1736273949278,1.98035647,3446.0,3445.6,3.45221]
[1736273949279,0.0075,3445.9,3445.6,3.45221]
[1736273949453,0.0075,3445.9,3445.8,3.45208]
[1736273949665,1.20875647,3446.5,3445.9,0.55]
[1736273949666,0.7963,3446.3,3445.9,0.55]
[1736273949855,0.0075,3446.2,3445.7,0.5575]
[1736273950259,0.0075,3446.2,3445.9,0.55]
[1736273950680,0.0075,3446.2,3445.8,0.02901688]
[1736273951167,0.0075,3446.2,3445.8,2.93107688]
[1736273951355,0.0075,3446.2,3445.9,0.55]
[1736273953086,0.0075,3446.0,3445.9,3.45199]